bitfinex-derivatives/quotes_BNBF0:USTF0_20250524
["timestamp","ask_amount","ask_price","bid_price","bid_amount"]
[1748059294169,1.11895658,664.87,664.06,2.728]
[1748059302170,1.11895658,664.9,664.06,2.728]
[1748059305071,1.11895658,664.89,664.06,2.728]
[1748059307172,1.11895658,664.89,664.06,4.623]
[1748059308466,1.11895658,664.88,664.06,4.623]
[1748059311777,1.11895658,664.86,664.06,4.623]
[1748059314980,1.11895658,664.8,664.06,5.65012795]
[1748059317978,1.11895658,664.77,664.07,1.02712795]
[1748059320481,1.11895658,664.74,664.09,1.02712795]
[1748059321375,1.11895658,664.74,664.1,1.251]
[1748059322181,1.11895658,664.74,664.11,1.362]
[1748059322882,1.11895658,664.69,664.11,1.362]
[1748059326084,1.11895658,664.64,664.11,1.362]
[1748059328984,1.11895658,664.61,664.11,1.362]
[1748059332192,1.11895658,664.57,664.11,1.362]
[1748059332392,1.11895658,664.57,664.16,1.02712795]
[1748059335796,1.11895658,664.61,664.13,1.02712795]
[1748059339298,1.11895658,664.6,664.12,1.02712795]
[1748059342399,1.11895658,664.61,664.11,2.38912795]
[1748059344801,1.11895658,664.57,664.11,1.362]
[1748059348405,1.11895658,664.6,664.11,1.362]
[1748059349207,1.11895658,664.6,664.1,1.251]
[1748059351409,1.11895658,664.6,664.06,1.895]
[1748059351607,1.11895658,664.61,664.06,1.895]
[1748059352309,1.11895658,664.61,664.06,3.811]
[1748059353810,1.11895658,664.54,664.06,3.811]
[1748059355414,1.11895658,664.54,664.06,5.421]
[1748059356711,1.47822637,664.69,664.06,5.421]
[1748059356712,1.11895658,664.51,664.06,5.421]
[1748059359716,1.11895658,664.5,664.06,5.421]
[1748059362517,1.11895658,664.66,664.06,5.421]
[1748059365721,1.11895658,664.69,664.06,5.421]
[1748059368022,1.11895658,664.7,664.06,5.421]
[1748059371924,0.26181851,665.3,664.06,5.421]
[1748059371925,1.11895658,664.67,664.06,5.421]
[1748059374626,1.11895658,664.63,664.06,5.421]
[1748059376323,0.26181851,665.3,664.06,5.421]
[1748059376324,1.11895658,664.6,664.06,5.421]
[1748059378029,1.11895658,664.59,664.06,5.421]
[1748059382030,1.11895658,664.55,664.06,5.421]
[1748059385029,1.11895658,664.57,664.06,5.421]
[1748059388233,1.11895658,664.58,664.06,5.421]
[1748059391333,1.11895658,664.77,664.19,1.02712795]
[1748059394935,1.11895658,664.84,664.22,1.02712795]
[1748059397934,1.11895658,664.88,664.22,1.02712795]
[1748059398237,1.11895658,664.88,664.2,3.74012795]
[1748059401144,1.11895658,664.87,664.2,2.713]
[1748059402944,1.11895658,664.87,664.21,1.431]
[1748059404345,1.11895658,664.86,664.21,1.431]
[1748059407750,1.11895658,664.89,664.21,1.431]
[1748059409350,1.11895658,664.89,664.22,1.777]
[1748059410854,1.11895658,664.88,664.22,1.777]
[1748059414057,1.11895658,664.89,664.22,1.777]
[1748059417764,1.11895658,664.89,664.23,1.308]
[1748059418065,1.11895658,664.87,664.23,1.308]
[1748059420366,1.11895658,664.95,664.23,1.308]
[1748059423467,1.11895658,665.11,664.23,1.308]
[1748059427870,1.11895658,665.01,664.25,1.02712795]
[1748059430975,1.11895658,665.02,664.25,1.02712795]
[1748059433476,1.11895658,665.0,664.27,1.02712795]
[1748059437272,1.11895658,665.0,664.24,1.604]
[1748059437273,1.11895658,665.09,664.26,1.02712795]
[1748059440582,1.11895658,665.07,664.26,1.02712795]
[1748059440783,1.11895658,665.07,664.27,1.02712795]
[1748059443788,1.11895658,665.07,664.23,1.308]
[1748059443789,1.11895658,665.07,664.28,1.02712795]
[1748059443984,1.11895658,665.05,664.28,1.02712795]
[1748059444785,1.11895658,665.05,664.29,1.786]
[1748059446787,1.11895658,664.96,664.31,1.02712795]
[1748059449589,1.11895658,664.94,664.33,1.02712795]
[1748059451890,1.11895658,664.94,664.34,1.72]
[1748059458495,1.11895658,664.96,664.34,2.74712795]
[1748059461800,1.11895658,664.93,664.36,1.02712795]
[1748059466301,1.11895658,664.92,664.36,1.02712795]
[1748059468702,1.11895658,664.92,664.37,1.435]
[1748059469213,1.11895658,664.87,664.4,1.02712795]
[1748059472013,1.11895658,664.88,664.39,1.02712795]
[1748059476218,1.11895658,664.9,664.4,1.02712795]
[1748059479725,1.11895658,664.89,664.42,1.02712795]
[1748059482520,1.11895658,664.89,664.43,1.02712795]
[1748059485527,1.11895658,664.89,664.42,1.02712795]
[1748059488430,1.11895658,664.9,664.41,1.02712795]
[1748059491531,1.11895658,664.89,664.42,1.02712795]
[1748059495437,1.11895658,664.88,664.37,1.435]
[1748059506550,1.11895658,664.84,664.37,1.435]
[1748059506849,1.11895658,664.84,664.36,1.02712795]
[1748059509550,1.11895658,664.86,664.34,1.02712795]
[1748059512552,1.11895658,664.87,664.33,1.689]
[1748059516455,1.11895658,664.86,664.34,1.02712795]
[1748059519458,1.47822637,665.02,664.33,1.689]
[1748059519459,1.11895658,664.85,664.35,1.02712795]
[1748059522260,1.11895658,664.85,664.36,1.382]
[1748059522661,1.11895658,664.84,664.38,1.02712795]
[1748059526564,1.11895658,664.87,664.36,1.382]
[1748059529262,1.11895658,664.86,664.36,1.382]
[1748059532870,1.11895658,664.92,664.36,1.382]
[1748059535971,1.11895658,665.01,664.36,1.382]
[1748059538276,1.11895658,665.01,664.33,1.689]
[1748059539680,1.11895658,665.03,664.33,1.689]
[1748059540778,1.11895658,665.03,664.34,1.742]
[1748059543483,1.11895658,665.02,664.34,1.742]
[1748059545782,1.11895658,665.02,664.35,1.274]
[1748059546482,1.11895658,665.0,664.35,1.274]
[1748059549291,1.11895658,665.0,664.36,1.843]
[1748059549790,1.11895658,664.97,664.37,1.02712795]
[1748059553691,1.11895658,664.97,664.48,1.02712795]
[1748059555990,1.11895658,664.97,664.47,1.02712795]
[1748059559195,1.11895658,665.0,664.48,1.02712795]
[1748059563401,1.11895658,664.99,664.5,1.02712795]
[1748059566202,1.11895658,664.99,664.51,1.838]
[1748059566498,1.11895658,665.01,664.51,1.838]
[1748059567702,1.11895658,665.01,664.52,1.257]
[1748059569303,1.11895658,665.11,664.52,1.257]
[1748059570804,1.11895658,665.11,664.52,1.55796912]
[1748059572705,1.11895658,665.62,664.75,1.02712795]
[1748059574710,1.11895658,665.68,664.64,1.02712795]
[1748059578210,1.11895658,665.65,664.63,1.02712795]
[1748059580507,1.11895658,665.65,664.64,1.319]
[1748059582115,0.2615794,665.96,664.64,1.319]
[1748059582116,1.11895658,665.62,664.64,1.319]
[1748059584416,1.11895658,665.75,664.66,1.02712795]
[1748059586316,1.11895658,665.75,664.67,1.885]
[1748059588020,1.11895658,665.79,664.67,1.885]
[1748059590819,1.11895658,665.78,664.67,1.885]
[1748059594123,1.11895658,665.7,664.67,1.885]
[1748059597528,1.11895658,665.64,664.67,1.885]
[1748059601032,1.11895658,665.71,664.67,1.885]
[1748059604435,1.11895658,665.71,664.68,1.614]
[1748059604635,1.11895658,665.74,664.68,1.614]
[1748059609146,1.11895658,665.74,664.68,2.974]
[1748059610839,1.11895658,665.89,664.68,2.974]
[1748059613840,1.11895658,665.85,664.69,1.02712795]
[1748059616445,1.11895658,665.83,664.69,1.02712795]
[1748059619449,1.11895658,665.72,664.8,1.02712795]
[1748059623447,1.11895658,665.66,664.84,1.02712795]
[1748059623846,1.11895658,665.66,664.85,1.688]
[1748059626355,1.11895658,665.61,664.87,1.02712795]
[1748059629357,1.11895658,665.57,664.94,1.02712795]
[1748059633262,1.11895658,665.7,665.04,1.02712795]
[1748059637164,1.11895658,665.75,665.11,1.02712795]
[1748059637459,1.11895658,665.75,665.12,1.678]
[1748059639468,1.11895658,665.75,665.13,1.42]
[1748059639667,1.11895658,665.77,665.13,1.42]
[1748059642576,1.11895658,665.77,665.14,1.496]
[1748059643175,1.11895658,665.74,665.14,1.496]
[1748059646775,1.11895658,665.75,665.14,1.496]
[1748059650477,1.11895658,665.77,665.14,1.496]
[1748059653279,1.11895658,665.75,665.14,1.496]
[1748059660083,1.11895658,665.71,665.14,1.496]
[1748059661783,1.11895658,665.71,665.12,1.678]
[1748059662582,1.11895658,665.71,665.13,1.664]
[1748059663487,1.11895658,665.84,665.13,1.664]
[1748059664987,1.11895658,665.84,665.14,1.171]
[1748059666784,1.11895658,665.83,665.14,1.171]
[1748059670187,1.11895658,665.81,665.14,1.171]
[1748059673493,1.11895658,665.74,665.14,1.171]
[1748059676096,1.11895658,665.74,665.13,1.664]
[1748059676495,1.11895658,665.72,665.14,1.02712795]
[1748059677294,1.11895658,665.72,665.15,1.545]
[1748059678495,1.11895658,665.7,665.16,1.02712795]
[1748059678996,1.11895658,665.7,665.17,1.216]
[1748059679695,1.11895658,665.71,665.17,1.216]
[1748059686704,1.11895658,665.69,665.18,1.02712795]
[1748059690205,1.11895658,665.67,665.21,1.02712795]
[1748059693202,1.11895658,665.88,665.22,1.02712795]
[1748059696613,1.11895658,666.02,665.43,1.02712795]
[1748059698914,1.11895658,666.02,665.43,2.27212795]
[1748059699116,1.47822637,666.19,665.43,1.245]
[1748059701720,1.47822637,666.21,665.43,1.245]
[1748059705023,1.47822637,666.17,665.43,1.245]
[1748059708821,1.47822637,666.22,665.43,1.245]
[1748059711827,1.47822637,666.23,665.43,1.245]
[1748059715130,1.47822637,666.24,665.43,1.245]
[1748059715830,1.47822637,666.24,665.43,3.067]
[1748059718832,1.47822637,666.16,665.43,3.067]
[1748059721736,1.47822637,666.26,665.43,3.067]
[1748059725242,1.47822637,666.27,665.43,3.067]
[1748059728241,1.47822637,666.28,665.43,3.067]
[1748059729140,1.47822637,666.28,665.43,4.69]
[1748059731443,1.47822637,666.27,665.43,4.69]
[1748059734345,1.47822637,666.2,665.43,4.69]
[1748059737249,1.47822637,666.15,665.43,4.69]
[1748059739245,1.47822637,666.16,665.43,4.69]
[1748059742450,1.47822637,666.21,665.43,4.69]
[1748059747956,1.47822637,666.18,665.43,4.69]
[1748059751057,1.47822637,666.15,665.44,1.02712795]
[1748059754256,1.47822637,666.08,665.44,1.02712795]
[1748059754454,1.47822637,666.08,665.5,1.02712795]
[1748059758263,1.47822637,666.09,665.5,1.02712795]
[1748059761864,1.47822637,666.11,665.48,1.02712795]
[1748059765160,1.47822637,666.11,665.47,1.02712795]
[1748059765365,1.47822637,666.13,665.47,1.02712795]
[1748059769370,1.47822637,666.24,665.45,1.317]
[1748059772474,1.47822637,666.24,665.46,1.597]
[1748059772675,1.47822637,666.26,665.46,1.597]
[1748059775979,1.47822637,666.25,665.46,1.597]
[1748059778381,1.47822637,666.19,665.46,1.597]
[1748059779383,1.47822637,666.19,665.47,1.3]
[1748059780677,1.47822637,666.19,665.48,1.225]
[1748059781383,1.47822637,666.34,665.5,1.02712795]
[1748059784585,1.47822637,666.34,665.52,1.02712795]
[1748059787589,1.47822637,666.38,665.53,1.02712795]
[1748059790588,1.47822637,666.48,665.51,1.02712795]
[1748059793490,1.47822637,666.63,665.63,1.02712795]
[1748059796693,1.47822637,666.67,665.59,1.02712795]
[1748059799291,1.47822637,666.68,665.58,1.02712795]
[1748059802295,1.47822637,666.67,665.6,1.02712795]
[1748059803594,1.47822637,666.67,665.61,1.438]
[1748059806301,1.47822637,666.68,665.61,2.46512795]
[1748059810000,1.47822637,666.74,665.61,1.438]
[1748059814198,1.47822637,666.96,665.61,1.438]
[1748059814402,1.47822637,666.96,665.72,1.02712795]
[1748059816103,1.47822637,666.96,665.73,1.165]
[1748059817601,1.47822637,667.05,665.73,1.165]
[1748059817905,0.29983209,667.04,665.73,1.165]
[1748059821309,0.29983209,667.04,665.74,1.569]
[1748059825516,1.47822637,667.02,665.74,1.569]
[1748059825716,0.29984557,667.01,665.74,1.569]
[1748059834319,0.29984557,667.01,665.71,1.02712795]
[1748059835121,0.29984557,667.01,665.72,1.622]
[1748059835420,1.47822637,666.94,665.76,1.02712795]
[1748059836925,1.47822637,666.94,665.77,1.602]
[1748059838523,0.29984557,667.01,665.77,2.62912795]
[1748059841725,1.77807194,667.01,665.86,1.02712795]
[1748059845528,1.47822637,666.93,665.9,1.02712795]
[1748059847127,1.47822637,666.93,665.91,1.173]
[1748059848933,1.47822637,666.92,665.91,1.173]
[1748059851436,1.47822637,666.92,665.92,1.759]
[1748059852336,1.47822637,666.99,665.92,1.759]
[1748059856039,1.11892079,666.9,665.92,1.759]
[1748059859443,1.11892079,666.89,665.92,1.759]
[1748059862845,1.11892079,666.89,665.92,2.78612795]
[1748059864449,1.11892079,666.89,665.92,1.02712795]
[1748059866151,1.11892079,666.7,666.02,1.02712795]
[1748059867548,1.11892079,666.7,666.03,1.65]
[1748059869351,1.11892079,666.62,666.03,1.65]
[1748059872149,1.11892079,666.6,666.03,1.65]
[1748059877452,1.11892079,666.6,666.04,1.515]
[1748059879654,1.11892079,666.37,666.04,1.515]
[1748059883259,1.11892079,666.23,666.04,1.515]
[1748059885861,1.11892079,666.27,666.04,1.515]
[1748059889164,1.11892079,666.2,666.04,1.515]
[1748059892467,1.11892079,666.2,666.03,1.65]
[1748059893065,1.11892079,666.2,666.03,2.853]
[1748059893666,1.11892079,666.36,666.03,2.853]
[1748059895369,1.11892079,666.36,666.04,1.577]
[1748059896570,1.11892079,666.42,666.04,1.577]
[1748059898565,1.11892079,666.42,666.05,1.312]
[1748059900071,1.11892079,666.48,666.05,1.312]
[1748059903772,1.41900481,666.48,666.05,1.312]
[1748059903973,0.30008852,666.47,666.05,1.312]
[1748059906774,1.11892079,666.33,666.05,1.312]
[1748059906971,0.30015608,666.32,666.05,1.312]
[1748059910076,1.11892079,666.25,666.05,1.312]
[1748059910271,1.4191084,666.25,666.05,1.312]
[1748059911579,0.30019212,666.24,666.05,1.312]
[1748059913677,0.30019212,666.24,666.04,1.577]
[1748059916785,0.30019212,666.24,666.05,1.349]
[1748059918886,1.11892079,666.22,666.05,1.349]
[1748059921693,1.11892079,666.18,666.05,1.349]
[1748059923888,1.41913994,666.18,666.05,1.349]
[1748059924395,0.30022366,666.17,666.05,1.349]
[1748059927698,1.11892079,666.14,666.05,1.349]
[1748059927897,0.30024169,666.13,666.05,1.349]
[1748059939802,0.30024169,666.13,664.77,1.02712795]
[1748059940507,1.11561779,665.85,664.78,1.02712795]
[1748059941814,1.11561779,665.85,664.79,2.796]
[1748059942812,1.11561779,665.85,664.8,1.434]
[1748059943712,1.11561779,665.79,664.8,2.46112795]
[1748059947820,1.11561779,665.73,664.8,1.434]
[1748059951321,1.11561779,665.76,664.8,1.434]
[1748059954020,1.11561779,665.74,664.8,1.434]
[1748059956523,1.11561779,665.66,664.8,1.434]
[1748059957824,1.11561779,665.66,664.81,1.113]
[1748059959225,1.11561779,665.65,664.81,1.113]
[1748059963428,1.11561779,665.58,664.81,1.113]
[1748059966331,1.11561779,665.54,664.81,1.113]
[1748059969833,1.11561779,665.51,664.81,1.113]
[1748059970334,1.11561779,665.51,664.81,2.293]
[1748059972536,1.11561779,665.51,664.81,3.764]
[1748059973130,1.11561779,665.53,664.81,3.764]
[1748059976239,1.11561779,665.5,664.81,3.764]
[1748059979947,1.11561779,665.44,664.81,3.764]
[1748059981442,1.11561779,665.4,664.81,3.764]
[1748059985247,1.11561779,665.45,664.81,3.764]
[1748059990450,1.11561779,665.43,664.81,3.764]
[1748059993647,1.11561779,665.35,664.81,3.764]
[1748059997151,1.11561779,665.34,664.81,3.764]
[1748059999354,1.11561779,665.32,664.81,3.764]
[1748060002358,1.11561779,665.28,664.81,3.764]
[1748060005558,1.11561779,665.25,664.81,3.764]
[1748060009261,1.11561779,665.21,664.81,3.764]
[1748060015468,1.11561779,665.47,664.81,3.764]
[1748060021668,1.11561779,665.45,664.81,3.764]
[1748060025468,1.11561779,665.41,664.81,3.764]
[1748060028072,1.11561779,665.52,664.87,1.02712795]
[1748060031475,1.11561779,665.52,664.85,1.02712795]
[1748060031776,1.11561779,665.52,664.86,1.623]
[1748060031974,1.11561779,665.52,664.86,2.748]
[1748060032378,1.11561779,665.52,664.87,1.715]
[1748060035782,1.11561779,665.53,664.87,1.715]
[1748060038785,1.11561779,665.49,664.87,1.715]
[1748060041587,1.11561779,665.47,664.87,1.715]
[1748060044592,1.11561779,665.49,664.87,1.715]
[1748060047997,1.11561779,665.52,664.87,1.715]
[1748060048297,1.11561779,665.52,664.88,1.152]
[1748060049996,1.11561779,665.52,664.89,1.684]
[1748060051298,1.11561779,665.55,664.89,1.684]
[1748060061210,1.11561779,665.52,664.89,1.684]
[1748060064111,1.11561779,665.51,664.89,1.684]
[1748060066508,1.11561779,665.54,664.89,1.684]
[1748060068614,1.11561779,665.54,664.89,1.98480163]
[1748060070718,1.11561779,665.92,665.08,1.02712795]
[1748060072315,1.11561779,665.92,665.09,1.723]
[1748060073616,1.11561779,665.85,665.09,2.75012795]
[1748060076019,1.11561779,665.87,665.09,1.723]
[1748060076827,1.11561779,665.87,665.1,1.453]
[1748060078624,1.11561779,665.85,665.1,1.453]
[1748060084730,1.11561779,665.88,665.1,1.453]
[1748060088927,1.11561779,665.88,665.09,1.723]
[1748060091234,1.11561779,665.89,665.09,1.723]
[1748060092134,1.11561779,665.89,665.1,1.085]
[1748060094234,1.11561779,665.88,665.1,1.085]
[1748060100540,1.11561779,665.87,665.1,1.085]
[1748060103740,1.11561779,665.87,665.11,1.536]
[1748060103942,1.48749039,666.02,665.11,1.536]
[1748060103943,1.11561779,665.75,665.11,1.536]
[1748060107141,1.11561779,665.65,665.11,1.536]
[1748060110147,1.11561779,665.65,665.12,1.636]
[1748060110446,1.11561779,665.87,665.12,1.636]
[1748060114049,1.11561779,665.92,665.12,1.636]
[1748060116955,1.11561779,665.94,665.13,1.02712795]
[1748060120251,1.11561779,665.94,665.14,1.509]
[1748060120450,1.11561779,665.98,665.24,1.02712795]
[1748060123154,1.11561779,665.95,665.16,1.02712795]
[1748060126354,1.11561779,665.91,665.15,1.02712795]
[1748060128959,1.11561779,665.87,665.22,1.02712795]
[1748060133454,1.11561779,665.89,665.28,1.02712795]
[1748060137967,1.11561779,665.89,665.29,1.146]
[1748060138469,1.11561779,665.9,665.29,1.146]
[1748060141072,1.11561779,665.89,665.29,2.17312795]
[1748060141366,1.11561779,665.89,665.3,1.283]
[1748060143272,1.11561779,665.91,665.3,1.283]
[1748060147375,1.11561779,665.92,665.3,1.283]
[1748060151576,1.11561779,665.94,665.3,1.283]
[1748060151981,1.11561779,665.94,665.31,1.699]
[1748060154675,1.11561779,665.92,665.31,1.699]
[1748060160484,1.11561779,665.95,665.31,1.699]
[1748060164085,1.11561779,665.94,665.31,1.699]
[1748060167081,1.11561779,665.97,665.35,1.02712795]
[1748060169187,1.11561779,665.97,665.36,1.72]
[1748060170487,1.11561779,665.95,665.39,1.02712795]
[1748060173991,1.11561779,666.02,665.46,1.02712795]
[1748060176687,1.11561779,666.02,665.44,1.02712795]
[1748060176892,1.11561779,666.04,665.44,1.02712795]
[1748060180395,1.11561779,666.04,665.45,1.145]
[1748060180595,1.11561779,666.03,665.45,2.17212795]
[1748060183090,1.11561779,666.06,665.45,2.17212795]
[1748060186802,1.11561779,666.08,665.45,2.17212795]
[1748060190305,1.11561779,666.08,665.45,1.145]
[1748060192299,1.11561779,666.06,665.46,1.02712795]
[1748060195810,1.11561779,665.96,665.45,1.145]
[1748060196407,1.11561779,665.96,665.36,1.72]
[1748060197916,1.11561779,665.96,665.37,1.438]
[1748060199618,1.11561779,665.96,665.38,1.413]
[1748060200622,1.11561779,665.95,665.38,1.413]
[1748060203022,1.11561779,665.94,665.38,1.413]
[1748060206624,1.11561779,665.92,665.38,1.413]
[1748060209924,1.11561779,665.91,665.38,1.413]
[1748060211621,1.11561779,665.91,665.37,1.438]
[1748060213128,1.11561779,665.89,665.37,1.438]
[1748060215126,1.11561779,665.89,665.38,1.335]
[1748060216927,1.11561779,665.88,665.38,1.335]
[1748060220029,1.11561779,665.98,665.41,1.02712795]
[1748060222926,1.11561779,665.99,665.41,1.02712795]
[1748060226934,1.11561779,665.99,665.42,1.322]
[1748060228030,1.11561779,665.99,665.43,1.283]
[1748060233039,1.11561779,665.96,665.44,1.02712795]
[1748060236041,2.21733955,666.19,665.43,1.283]
[1748060236042,1.11561779,666.0,665.43,1.283]
[1748060239746,1.11561779,666.0,665.43,2.679]
[1748060241849,1.11561779,666.03,665.43,3.70612795]
[1748060245151,1.11561779,666.03,665.46,1.02712795]
[1748060249151,1.11561779,666.0,665.45,1.02712795]
[1748060252752,1.11561779,666.03,665.5,1.02712795]
[1748060255857,1.11561779,666.03,665.51,1.738]
[1748060256654,1.11561779,666.06,665.51,1.738]
[1748060259655,1.11561779,666.09,665.51,1.738]
[1748060261061,1.11561779,666.09,665.52,1.725]
[1748060261568,1.11561779,666.09,665.53,1.083]
[1748060263464,1.11561779,665.98,665.53,1.083]
[1748060267161,1.48749039,666.14,665.53,1.083]
[1748060267162,1.11561779,665.95,665.53,1.083]
[1748060270569,1.11561779,665.96,665.53,1.083]
[1748060274375,1.11561779,665.91,665.53,1.083]
[1748060278779,1.11561779,665.9,665.53,1.083]
[1748060278980,1.11561779,665.9,665.54,1.072]
[1748060281985,1.11561779,665.9,665.55,1.452]
[1748060284188,1.11561779,665.81,665.55,1.452]
[1748060288190,1.11561779,665.81,665.56,1.148]
[1748060290093,1.11561779,665.84,665.56,1.148]
[1748060293595,1.11561779,665.87,665.56,1.148]
[1748060296796,1.11561779,665.88,665.56,1.148]
[1748060299901,1.11561779,665.87,665.56,1.148]
[1748060303198,1.11561779,666.08,665.56,1.148]
[1748060306103,1.11561779,666.02,665.56,1.148]
[1748060309607,1.11561779,666.21,665.56,1.148]
[1748060311009,1.11561779,666.21,665.56,2.883]
[1748060313604,1.48749039,666.45,665.56,2.883]
[1748060313605,1.11561779,666.25,665.56,2.883]
[1748060316713,1.11561779,666.17,665.56,2.883]
[1748060319806,1.11561779,666.16,665.56,2.883]
[1748060322009,1.11561779,666.16,665.56,4.584]
[1748060324320,1.11561779,666.34,665.56,4.584]
[1748060327723,1.11561779,666.41,665.56,4.584]
[1748060331131,1.11561779,666.59,665.56,4.584]
[1748060333432,1.11561779,666.62,665.56,4.584]
[1748060336533,1.11561779,666.68,665.59,1.02712795]
[1748060339234,1.11561779,666.68,665.6,1.593]
[1748060339533,1.11561779,666.74,665.61,1.02712795]
[1748060339834,1.11561779,666.74,665.62,1.151]
[1748060342231,1.11561779,666.77,665.62,1.151]
[1748060345536,1.48749039,666.95,665.62,1.151]
[1748060345537,1.11561779,666.78,665.62,1.151]
[1748060345738,1.11561779,666.78,665.63,1.731]
[1748060348444,1.11561779,666.79,665.65,1.02712795]
[1748060351340,1.11561779,666.76,665.68,1.02712795]
[1748060355346,1.11561779,666.78,665.67,1.02712795]
[1748060358346,1.11561779,666.76,665.67,1.02712795]
[1748060361049,1.11561779,666.76,665.68,1.594]
[1748060361647,1.48749039,666.92,665.68,1.594]
[1748060361648,1.11561779,666.75,665.68,1.594]
[1748060363251,1.11561779,666.75,665.68,2.708]
[1748060364552,1.11561779,666.73,665.7,1.02712795]
[1748060368455,1.11561779,666.78,665.73,1.02712795]
[1748060371856,1.11561779,666.74,665.72,1.02712795]
[1748060374460,1.11561779,666.66,665.74,1.02712795]
[1748060378363,1.11561779,666.51,665.76,1.02712795]
[1748060381366,1.11561779,666.52,665.68,2.708]
[1748060384072,1.11561779,666.52,665.69,1.02712795]
[1748060384272,1.11561779,666.39,665.69,1.02712795]
[1748060387570,1.11561779,666.42,665.76,1.02712795]
[1748060390566,1.11561779,666.47,665.68,1.594]
[1748060391873,1.11561779,666.47,665.68,2.678]
[1748060394371,1.11561779,666.46,665.68,2.678]
[1748060397378,1.11561779,666.3,665.73,1.02712795]
[1748060400279,1.11561779,666.26,665.68,2.678]
[1748060401679,1.11561779,666.26,665.68,4.288]
[1748060404182,1.11561779,666.47,665.68,4.288]
[1748060406685,1.11561779,666.43,665.72,1.02712795]
[1748060410192,1.11561779,666.44,665.72,1.02712795]
[1748060411486,1.11561779,666.44,665.73,1.175]
[1748060413788,1.11561779,666.41,665.74,1.02712795]
[1748060416995,1.11561779,666.38,665.73,1.175]
[1748060420198,1.11561779,666.38,665.73,2.20212795]
[1748060421600,1.11561779,666.38,665.74,1.716]
[1748060421998,1.11561779,666.38,665.75,1.384]
[1748060423400,1.11561779,666.5,665.75,1.384]
[1748060426799,1.11561779,666.59,665.81,1.02712795]
[1748060430005,1.11561779,666.53,665.86,1.02712795]
[1748060433707,1.48749039,666.69,665.96,1.02712795]
[1748060436807,1.48749039,666.72,665.96,1.02712795]
[1748060438808,1.48749039,666.72,665.97,1.404]
[1748060440212,1.48749039,666.72,665.97,2.43112795]
[1748060444011,1.11990303,666.75,665.97,1.404]
[1748060447215,1.11990303,666.76,665.97,1.404]
[1748060450520,1.11990303,666.65,665.97,1.404]
[1748060453120,1.11990303,666.8,665.97,1.404]
[1748060454321,1.11990303,666.8,665.98,1.11]
[1748060456018,1.11990303,666.81,665.98,1.11]
[1748060460223,1.11990303,666.88,665.98,1.11]
[1748060462627,1.11990303,666.88,665.99,1.624]
[1748060463422,1.11990303,666.9,665.99,1.624]
[1748060464029,1.11990303,666.9,666.0,1.618]
[1748060467229,1.11990303,666.96,666.0,1.618]
[1748060473638,1.11990303,666.95,666.0,1.618]
[1748060476745,1.11990303,666.85,666.0,1.618]
[1748060479338,1.11990303,666.83,666.0,1.618]
[1748060482645,1.11990303,666.92,666.0,1.618]
[1748060485448,1.11990303,666.9,666.0,1.618]
[1748060489958,1.48749039,667.15,666.0,1.618]
[1748060489959,1.11990303,667.23,666.09,1.02712795]
[1748060490958,1.11990303,667.23,666.1,1.458]
[1748060493262,1.11990303,667.15,666.27,1.02712795]
[1748060496259,1.11990303,667.19,666.23,1.02712795]
[1748060499467,1.11990303,667.32,666.26,1.02712795]
[1748060502367,1.11990303,667.34,666.21,1.02712795]
[1748060502662,1.11990303,667.34,666.22,1.483]
[1748060505469,1.11990303,667.36,666.22,1.483]
[1748060509168,1.11990303,667.37,666.22,1.483]
[1748060512576,1.11990303,667.35,666.22,1.483]
[1748060514679,1.11990303,667.35,666.23,1.749]
[1748060516484,1.11990303,667.32,666.23,1.749]
[1748060519182,1.11990303,667.29,666.25,1.02712795]
[1748060522683,1.11990303,667.27,666.26,1.02712795]
[1748060524190,1.11990303,667.27,666.27,1.736]
[1748060525791,1.11990303,667.23,666.31,1.02712795]
[1748060529198,1.11990303,667.24,666.29,1.02712795]
[1748060532507,1.11990303,667.23,666.29,1.02712795]
[1748060536106,1.11990303,667.21,666.32,1.02712795]